[Event "Live Chess"]
[Site "Chess.com"]
[Date "2024.06.02"]
[Round "-"]
[White "missedJariChance"]
[Black "joellloyd"]
[Result "1-0"]
[WhiteElo "1380"]
[BlackElo "1855"]
[TimeControl "300"]
[EndTime "8:42:37 PDT"]
[Termination "missedJariChance won by resignation"]

1. b3 {[%clk 0:04:56.8]} 1... Nf6 {[%clk 0:04:59]} 2. Bb2 {[%clk 0:04:55.1]}
2... c6 {[%clk 0:04:58]} 3. e3 {[%clk 0:04:51.3]} 3... d5 {[%clk 0:04:57.9]} 4.
Nf3 {[%clk 0:04:49.5]} 4... Bg4 {[%clk 0:04:56.4]} 5. Be2 {[%clk 0:04:48.2]}
5... e6 {[%clk 0:04:55.1]} 6. c4 {[%clk 0:04:42.3]} 6... Bd6 {[%clk 0:04:53.7]}
7. h3 {[%clk 0:04:38.4]} 7... Bxf3 {[%clk 0:04:51.8]} 8. Bxf3 {[%clk 0:04:37.2]}
8... Nbd7 {[%clk 0:04:51.5]} 9. cxd5 {[%clk 0:04:29.6]} 9... cxd5 {[%clk
0:04:47]} 10. d3 {[%clk 0:04:23.2]} 10... O-O {[%clk 0:04:45.4]} 11. Nd2 {[%clk
0:04:21.6]} 11... Be5 {[%clk 0:04:37.5]} 12. d4 {[%clk 0:04:11.7]} 12... Bd6
{[%clk 0:04:35.9]} 13. O-O {[%clk 0:04:09.4]} 13... Rc8 {[%clk 0:04:33.7]} 14.
Re1 {[%clk 0:04:04.3]} 14... e5 {[%clk 0:04:23]} 15. dxe5 {[%clk 0:03:49.7]}
15... Bxe5 {[%clk 0:04:21.7]} 16. Bxe5 {[%clk 0:03:38.5]} 16... Nxe5 {[%clk
0:04:20.8]} 17. Be2 {[%clk 0:03:26.9]} 17... Ne4 {[%clk 0:04:17.3]} 18. Nf3
{[%clk 0:03:18.4]} 18... Nc3 {[%clk 0:04:11.5]} 19. Qd2 {[%clk 0:03:07]} 19...
Nxe2+ {[%clk 0:04:09]} 20. Qxe2 {[%clk 0:03:01.4]} 20... Re8 {[%clk 0:04:06]}
21. Nd4 {[%clk 0:02:49.8]} 21... Nc6 {[%clk 0:04:02.3]} 22. Qg4 {[%clk
0:02:40.7]} 22... Re4 {[%clk 0:03:54.6]} 23. Qf3 {[%clk 0:01:41.9]} 23... Nxd4
{[%clk 0:03:51]} 24. exd4 {[%clk 0:01:39.8]} 24... Rxd4 {[%clk 0:03:49.9]} 25.
Re5 {[%clk 0:01:23]} 25... h6 {[%clk 0:03:40.1]} 26. Rae1 {[%clk 0:01:19.8]}
26... Qd6 {[%clk 0:03:29.9]} 27. Re7 {[%clk 0:01:11.1]} 27... Rf4 {[%clk
0:03:22.7]} 28. Qd3 {[%clk 0:00:57]} 28... Qb6 {[%clk 0:02:59.1]} 29. Re8+
{[%clk 0:00:49.6]} 1-0

[Event "Live Chess"]
[Site "Chess.com"]
[Date "2024.06.02"]
[Round "-"]
[White "davigator"]
[Black "degringolade64"]
[Result "1-0"]
[WhiteElo "2340"]
[BlackElo "2080"]
[TimeControl "300"]
[EndTime "8:42:45 PDT"]
[Termination "davigator won by checkmate"]

1. e4 {[%clk 0:04:55.7]} 1... c6 {[%clk 0:04:58.2]} 2. d4 {[%clk 0:04:54.1]}
2... d5 {[%clk 0:04:57.4]} 3. e5 {[%clk 0:04:53]} 3... Bf5 {[%clk 0:04:56.3]} 4.
Nf3 {[%clk 0:04:50.2]} 4... e6 {[%clk 0:04:53.2]} 5. Be2 {[%clk 0:04:48.4]} 5...
Ne7 {[%clk 0:04:50.5]} 6. O-O {[%clk 0:04:47]} 6... Nd7 {[%clk 0:04:48.9]} 7.
Be3 {[%clk 0:04:44]} 7... Ng6 {[%clk 0:04:45.1]} 8. Nbd2 {[%clk 0:04:42.7]} 8...
f6 {[%clk 0:04:43.2]} 9. exf6 {[%clk 0:04:37.6]} 9... Qxf6 {[%clk 0:04:42.2]}
10. c4 {[%clk 0:04:36.2]} 10... Bd6 {[%clk 0:04:40]} 11. Qb3 {[%clk 0:04:34.6]}
11... Rb8 {[%clk 0:04:08.3]} 12. Rfe1 {[%clk 0:04:24.3]} 12... O-O {[%clk
0:04:06.4]} 13. h3 {[%clk 0:04:19.1]} 13... Nf4 {[%clk 0:03:37.6]} 14. Bf1
{[%clk 0:04:16.4]} 14... Kh8 {[%clk 0:03:08.6]} 15. Kh1 {[%clk 0:04:12.1]} 15...
Bc7 {[%clk 0:01:55.7]} 16. Qa3 {[%clk 0:03:59.8]} 16... dxc4 {[%clk 0:01:44.6]}
17. Nxc4 {[%clk 0:03:54.2]} 17... Nxh3 {[%clk 0:01:40.6]} 18. gxh3 {[%clk
0:03:48.7]} 18... Be4 {[%clk 0:01:39.6]} 19. Nd2 {[%clk 0:03:43]} 19... Bxf3+
{[%clk 0:01:37.9]} 20. Nxf3 {[%clk 0:03:41.6]} 20... Qxf3+ {[%clk 0:01:37.5]}
21. Bg2 {[%clk 0:03:41.1]} 21... Qh5 {[%clk 0:01:25]} 22. Qe7 {[%clk 0:03:36]}
22... Rbd8 {[%clk 0:01:11.9]} 23. Qxe6 {[%clk 0:03:33.2]} 23... Nf6 {[%clk
0:01:06.4]} 24. Qc4 {[%clk 0:03:21]} 24... Nd5 {[%clk 0:01:01.3]} 25. Qe2 {[%clk
0:03:19.9]} 25... Qg6 {[%clk 0:00:46.9]} 26. Qg4 {[%clk 0:03:18]} 26... Qd6
{[%clk 0:00:45.3]} 27. Kg1 {[%clk 0:03:05.6]} 27... Nxe3 {[%clk 0:00:42.3]} 28.
Rxe3 {[%clk 0:03:03.8]} 28... Qh2+ {[%clk 0:00:41.1]} 29. Kf1 {[%clk 0:03:02.8]}
29... Rde8 {[%clk 0:00:29]} 30. Rae1 {[%clk 0:03:00]} 30... Rxe3 {[%clk
0:00:24.2]} 31. Rxe3 {[%clk 0:02:59]} 31... Bf4 {[%clk 0:00:21.5]} 32. Re7
{[%clk 0:02:57.3]} 32... Bg3 {[%clk 0:00:14.8]} 33. Qxg7# {[%clk 0:02:54.7]} 1-0

[Event "Live Chess"]
[Site "Chess.com"]
[Date "2024.06.02"]
[Round "-"]
[White "f4nomore"]
[Black "kylet1990"]
[Result "1-0"]
[WhiteElo "1294"]
[BlackElo "780"]
[TimeControl "300"]
[EndTime "8:42:52 PDT"]
[Termination "f4nomore won by resignation"]

1. Nc3 {[%clk 0:04:55.2]} 1... e5 {[%clk 0:04:56.8]} 2. e3 {[%clk 0:04:54.2]}
2... Nc6 {[%clk 0:04:54.1]} 3. g3 {[%clk 0:04:51.7]} 3... Bc5 {[%clk 0:04:52.4]}
4. Bg2 {[%clk 0:04:50.3]} 4... Nf6 {[%clk 0:04:48.7]} 5. Nge2 {[%clk 0:04:48.8]}
5... O-O {[%clk 0:04:47]} 6. O-O {[%clk 0:04:47.4]} 6... d5 {[%clk 0:04:42.4]}
7. d4 {[%clk 0:04:45.5]} 7... Bb6 {[%clk 0:04:39.8]} 8. dxe5 {[%clk 0:04:40.2]}
8... Nxe5 {[%clk 0:04:36.8]} 9. Nxd5 {[%clk 0:04:31.7]} 9... Nxd5 {[%clk
0:04:33.4]} 10. Qxd5 {[%clk 0:04:27.2]} 10... Qxd5 {[%clk 0:04:30.2]} 11. Bxd5
{[%clk 0:04:24.3]} 11... c6 {[%clk 0:04:26.5]} 12. Bg2 {[%clk 0:04:22.3]} 12...
Bf5 {[%clk 0:04:19.3]} 13. c3 {[%clk 0:04:19.8]} 13... Rfd8 {[%clk 0:04:09.3]}
14. Nd4 {[%clk 0:04:15.3]} 14... Bxd4 {[%clk 0:04:06.1]} 15. exd4 {[%clk
0:04:12.4]} 15... Nc4 {[%clk 0:04:02.5]} 16. b3 {[%clk 0:04:06]} 16... Nd6
{[%clk 0:03:56.6]} 17. Bf4 {[%clk 0:04:01]} 17... Bd3 {[%clk 0:03:53.2]} 18.
Rfe1 {[%clk 0:03:58.5]} 18... Nf5 {[%clk 0:03:45.6]} 19. Be4 {[%clk 0:03:50.3]}
19... Bxe4 {[%clk 0:03:42.1]} 20. Rxe4 {[%clk 0:03:47.9]} 20... h6 {[%clk
0:03:31.2]} 21. Rae1 {[%clk 0:03:41.9]} 21... g5 {[%clk 0:03:27.7]} 22. Bc1
{[%clk 0:03:37.9]} 22... f6 {[%clk 0:03:19.3]} 23. Re6 {[%clk 0:03:34.5]} 23...
Rf8 {[%clk 0:03:14.2]} 24. R1e4 {[%clk 0:03:17.2]} 24... Ng7 {[%clk 0:03:10.9]}
25. Re7 {[%clk 0:03:11.1]} 25... Rae8 {[%clk 0:03:07.6]} 26. Be3 {[%clk
0:02:56.9]} 26... Rxe7 {[%clk 0:03:00.9]} 27. Rxe7 {[%clk 0:02:54.6]} 27... Nf5
{[%clk 0:02:58.5]} 28. Rxb7 {[%clk 0:02:51.4]} 28... Re8 {[%clk 0:02:48]} 29.
Rxa7 {[%clk 0:02:44.3]} 29... Nxe3 {[%clk 0:02:46.4]} 30. fxe3 {[%clk 0:02:41]}
30... Rxe3 {[%clk 0:02:44.9]} 31. Kf2 {[%clk 0:02:39.7]} 31... Rxc3 {[%clk
0:02:43]} 32. Ra8+ {[%clk 0:02:32.3]} 32... Kg7 {[%clk 0:02:41.1]} 33. b4 {[%clk
0:02:28]} 33... Rc2+ {[%clk 0:02:39.4]} 34. Ke3 {[%clk 0:02:23.8]} 34... Rxh2
{[%clk 0:02:36.3]} 35. Ra7+ {[%clk 0:02:17.9]} 35... Kg6 {[%clk 0:02:33.5]} 36.
Ke4 {[%clk 0:02:16.3]} 36... Re2+ {[%clk 0:02:27.1]} 37. Kd3 {[%clk 0:02:13.6]}
37... Re6 {[%clk 0:02:24]} 38. a4 {[%clk 0:02:07.1]} 38... Kf5 {[%clk
0:02:19.5]} 39. b5 {[%clk 0:02:03]} 39... cxb5 {[%clk 0:02:16.7]} 40. axb5
{[%clk 0:02:00]} 40... Rb6 {[%clk 0:02:15.2]} 41. Ra5 {[%clk 0:01:52.4]} 41...
h5 {[%clk 0:02:12]} 42. Kc4 {[%clk 0:01:48.8]} 42... h4 {[%clk 0:02:10.8]} 43.
gxh4 {[%clk 0:01:45.8]} 43... gxh4 {[%clk 0:02:09.9]} 44. Kc5 {[%clk 0:01:42.9]}
44... Rb8 {[%clk 0:02:08.5]} 45. b6 {[%clk 0:01:40]} 45... h3 {[%clk 0:02:07.3]}
46. Kc6+ {[%clk 0:01:34.4]} 46... Ke4 {[%clk 0:01:55.6]} 47. Rh5 {[%clk
0:01:31.7]} 47... f5 {[%clk 0:01:48.4]} 48. Rxh3 {[%clk 0:01:29.6]} 48... Rf8
{[%clk 0:01:47.6]} 49. Kc7 {[%clk 0:01:27.4]} 49... f4 {[%clk 0:01:46]} 50. b7
{[%clk 0:01:25.9]} 50... f3 {[%clk 0:01:44.8]} 51. b8=Q {[%clk 0:01:22.6]} 51...
Rxb8 {[%clk 0:01:40.2]} 52. Kxb8 {[%clk 0:01:20.1]} 52... Ke3 {[%clk 0:01:39.2]}
53. d5 {[%clk 0:01:17.6]} 53... Ke2 {[%clk 0:01:36.9]} 54. Rxf3 {[%clk
0:01:15.4]} 54... Kxf3 {[%clk 0:01:35.6]} 55. d6 {[%clk 0:01:14.4]} 1-0

[Event "Live Chess"]
[Site "Chess.com"]
[Date "2024.06.02"]
[Round "-"]
[White "JanMur7"]
[Black "RamsayFlayer"]
[Result "1-0"]
[WhiteElo "2274"]
[BlackElo "1946"]
[TimeControl "300"]
[EndTime "8:43:13 PDT"]
[Termination "JanMur7 won by checkmate"]

1. c4 {[%clk 0:04:58.8]} 1... e5 {[%clk 0:04:58.6]} 2. Nf3 {[%clk 0:04:56.7]}
2... Nc6 {[%clk 0:04:57.3]} 3. e4 {[%clk 0:04:55.6]} 3... Nf6 {[%clk 0:04:55.7]}
4. Nc3 {[%clk 0:04:54.2]} 4... Bc5 {[%clk 0:04:52.4]} 5. Nxe5 {[%clk 0:04:53.2]}
5... Nxe5 {[%clk 0:04:51]} 6. d4 {[%clk 0:04:51.2]} 6... Bd6 {[%clk 0:04:45.7]}
7. c5 {[%clk 0:04:50.7]} 7... Bxc5 {[%clk 0:04:41.6]} 8. dxe5 {[%clk 0:04:49.2]}
8... Ng8 {[%clk 0:04:36.9]} 9. Qg4 {[%clk 0:04:47.8]} 9... g6 {[%clk 0:04:10.5]}
10. Qf3 {[%clk 0:04:45.7]} 10... Qe7 {[%clk 0:03:57.4]} 11. Bc4 {[%clk
0:04:39.2]} 11... c6 {[%clk 0:03:48]} 12. O-O {[%clk 0:04:36.5]} 12... b5 {[%clk
0:03:39]} 13. Bb3 {[%clk 0:04:32.9]} 13... Bb7 {[%clk 0:03:35.8]} 14. Rd1 {[%clk
0:04:29]} 14... O-O-O {[%clk 0:03:33.3]} 15. Qxf7 {[%clk 0:04:24.7]} 15... Qxe5
{[%clk 0:03:31.2]} 16. Bf4 {[%clk 0:04:20.2]} 16... Qf6 {[%clk 0:02:58.9]} 17.
Qxf6 {[%clk 0:04:13.9]} 17... Nxf6 {[%clk 0:02:58.8]} 18. Rac1 {[%clk 0:04:09]}
18... Ng4 {[%clk 0:02:48.7]} 19. Bg3 {[%clk 0:04:05.8]} 19... Rhf8 {[%clk
0:02:40.7]} 20. Rd2 {[%clk 0:04:03.8]} 20... Rf6 {[%clk 0:01:54.9]} 21. Nxb5
{[%clk 0:04:00.2]} 21... Bb4 {[%clk 0:01:36.5]} 22. Nxa7# {[%clk 0:03:56.5]} 1-0

[Event "Live Chess"]
[Site "Chess.com"]
[Date "2024.06.02"]
[Round "-"]
[White "Dashman93"]
[Black "upoe610"]
[Result "0-1"]
[WhiteElo "2149"]
[BlackElo "2155"]
[TimeControl "300"]
[EndTime "8:43:21 PDT"]
[Termination "upoe610 won by resignation"]

1. e4 {[%clk 0:04:58.1]} 1... e5 {[%clk 0:04:55.3]} 2. Nf3 {[%clk 0:04:57.1]}
2... Nc6 {[%clk 0:04:54.7]} 3. Bb5 {[%clk 0:04:54.1]} 3... a6 {[%clk 0:04:53.7]}
4. Ba4 {[%clk 0:04:51.2]} 4... Nf6 {[%clk 0:04:51.8]} 5. d3 {[%clk 0:04:50]}
5... b5 {[%clk 0:04:49.2]} 6. Bb3 {[%clk 0:04:49.2]} 6... Bc5 {[%clk 0:04:48.9]}
7. c3 {[%clk 0:04:48.8]} 7... d6 {[%clk 0:04:47.4]} 8. h3 {[%clk 0:04:47]} 8...
h6 {[%clk 0:04:46.8]} 9. Nbd2 {[%clk 0:04:45.5]} 9... Ba7 {[%clk 0:04:45.7]} 10.
Nf1 {[%clk 0:04:45]} 10... Be6 {[%clk 0:04:42.9]} 11. Be3 {[%clk 0:04:44.6]}
11... Bxb3 {[%clk 0:04:39.3]} 12. axb3 {[%clk 0:04:44.5]} 12... d5 {[%clk
0:04:35.5]} 13. Bxa7 {[%clk 0:04:41.9]} 13... Rxa7 {[%clk 0:04:33.8]} 14. Ng3
{[%clk 0:04:41.4]} 14... d4 {[%clk 0:04:30.9]} 15. O-O {[%clk 0:04:28.2]} 15...
Qd6 {[%clk 0:04:27.9]} 16. Nf5 {[%clk 0:04:27.3]} 16... Qd7 {[%clk 0:04:24]} 17.
Nxg7+ {[%clk 0:04:25.9]} 17... Kf8 {[%clk 0:04:23]} 18. Nf5 {[%clk 0:04:25.8]}
18... Rg8 {[%clk 0:04:21.2]} 19. Nxh6 {[%clk 0:04:20.6]} 19... Rg6 {[%clk
0:04:19.9]} 20. Nf5 {[%clk 0:04:20.1]} 20... Ne7 {[%clk 0:04:19.3]} 21. N3h4
{[%clk 0:04:18.8]} 21... Rg5 {[%clk 0:04:13.6]} 22. cxd4 {[%clk 0:04:17.3]}
22... exd4 {[%clk 0:04:10.2]} 23. f4 {[%clk 0:04:16.5]} 23... Rg8 {[%clk
0:04:07.7]} 24. Kh1 {[%clk 0:04:14.3]} 24... Nxf5 {[%clk 0:04:00.8]} 25. Nxf5
{[%clk 0:04:05.8]} 25... c5 {[%clk 0:03:59.7]} 26. Qf3 {[%clk 0:04:01.5]} 26...
Rh8 {[%clk 0:03:54.8]} 27. Rae1 {[%clk 0:03:57.3]} 27... Rc7 {[%clk 0:03:51.5]}
28. g4 {[%clk 0:03:50.2]} 28... c4 {[%clk 0:03:44.4]} 29. bxc4 {[%clk
0:03:48.5]} 29... bxc4 {[%clk 0:03:41.9]} 30. e5 {[%clk 0:03:48]} 30... Nd5
{[%clk 0:03:39]} 31. dxc4 {[%clk 0:03:45.4]} 31... Rxc4 {[%clk 0:03:37.5]} 32.
Nd6 {[%clk 0:03:40.6]} 32... Rc2 {[%clk 0:03:30.7]} 33. Rf2 {[%clk 0:03:15.3]}
33... Rxf2 {[%clk 0:03:26.3]} 34. Qxf2 {[%clk 0:03:15.2]} 34... Qxg4 {[%clk
0:03:24.9]} 0-1

[Event "Live Chess"]
[Site "Chess.com"]
[Date "2024.06.02"]
[Round "-"]
[White "viktor_forever1994"]
[Black "booktrunk"]
[Result "1-0"]
[WhiteElo "1386"]
[BlackElo "1473"]
[TimeControl "300"]
[EndTime "8:43:34 PDT"]
[Termination "viktor_forever1994 won by resignation"]

1. e4 {[%clk 0:04:58.5]} 1... b6 {[%clk 0:04:56]} 2. d4 {[%clk 0:04:57.1]} 2...
Bb7 {[%clk 0:04:55.9]} 3. Nc3 {[%clk 0:04:56.3]} 3... e6 {[%clk 0:04:50.5]} 4.
Nf3 {[%clk 0:04:56.2]} 4... h6 {[%clk 0:04:48.6]} 5. Bc4 {[%clk 0:04:55.4]} 5...
Nf6 {[%clk 0:04:38.8]} 6. O-O {[%clk 0:04:53.8]} 6... Nxe4 {[%clk 0:04:37]} 7.
Nxe4 {[%clk 0:04:52.3]} 7... Bxe4 {[%clk 0:04:36.2]} 8. Re1 {[%clk 0:04:52.2]}
8... Bb7 {[%clk 0:04:34.2]} 9. a3 {[%clk 0:04:47]} 9... Be7 {[%clk 0:04:32.5]}
10. d5 {[%clk 0:04:43.5]} 10... O-O {[%clk 0:04:29.4]} 11. Bf4 {[%clk
0:04:35.3]} 11... exd5 {[%clk 0:04:25.4]} 12. Bxd5 {[%clk 0:04:33.4]} 12... Bxd5
{[%clk 0:04:24.1]} 13. Qxd5 {[%clk 0:04:33.3]} 13... c6 {[%clk 0:04:21.6]} 14.
Qe4 {[%clk 0:04:23.1]} 14... Bf6 {[%clk 0:04:13.8]} 15. c3 {[%clk 0:04:19.1]}
15... Na6 {[%clk 0:04:12]} 16. Rad1 {[%clk 0:04:10.5]} 16... Nc5 {[%clk
0:04:08.1]} 17. Qc2 {[%clk 0:04:06.1]} 17... Re8 {[%clk 0:04:02.6]} 18. Bd6
{[%clk 0:03:59.6]} 18... Rxe1+ {[%clk 0:03:59.6]} 19. Rxe1 {[%clk 0:03:59.5]}
19... Ne6 {[%clk 0:03:56.3]} 20. Ne5 {[%clk 0:03:45.4]} 20... c5 {[%clk
0:03:35.8]} 21. Qd3 {[%clk 0:03:41.6]} 21... Nf4 {[%clk 0:03:26.7]} 22. Qd2
{[%clk 0:03:35.1]} 22... Ng6 {[%clk 0:03:22.6]} 23. Nxg6 {[%clk 0:03:23.2]}
23... fxg6 {[%clk 0:03:20.9]} 24. Bc7 {[%clk 0:03:10]} 24... Qxc7 {[%clk
0:03:15.6]} 25. Qd5+ {[%clk 0:03:08]} 25... Kh7 {[%clk 0:03:11.4]} 26. Qxa8
{[%clk 0:03:06.5]} 26... Be5 {[%clk 0:03:07]} 27. h3 {[%clk 0:02:59.8]} 27... g5
{[%clk 0:03:04.8]} 28. Qe4+ {[%clk 0:02:56.3]} 28... g6 {[%clk 0:02:54.5]} 29.
Qxe5 {[%clk 0:02:54.8]} 29... d6 {[%clk 0:02:54.4]} 30. Qe7+ {[%clk 0:02:52.5]}
30... Qxe7 {[%clk 0:02:53]} 31. Rxe7+ {[%clk 0:02:52.4]} 1-0

[Event "Live Chess"]
[Site "Chess.com"]
[Date "2024.06.02"]
[Round "-"]
[White "goldinspiredphoenix"]
[Black "Inglaterra"]
[Result "0-1"]
[WhiteElo "1459"]
[BlackElo "2048"]
[TimeControl "300"]
[EndTime "8:43:35 PDT"]
[Termination "Inglaterra won on time"]

1. d4 {[%clk 0:04:57.4]} 1... d5 {[%clk 0:04:59.5]} 2. c4 {[%clk 0:04:56]} 2...
e6 {[%clk 0:04:58.1]} 3. Nc3 {[%clk 0:04:53.3]} 3... Nf6 {[%clk 0:04:57.7]} 4.
Bf4 {[%clk 0:04:51.7]} 4... a6 {[%clk 0:04:55.3]} 5. Nf3 {[%clk 0:04:50.3]} 5...
Bd6 {[%clk 0:04:53.3]} 6. Bxd6 {[%clk 0:04:48.5]} 6... Qxd6 {[%clk 0:04:53.2]}
7. e3 {[%clk 0:04:47.3]} 7... O-O {[%clk 0:04:50.1]} 8. Be2 {[%clk 0:04:46]}
8... dxc4 {[%clk 0:04:48.7]} 9. Bxc4 {[%clk 0:04:44.6]} 9... b5 {[%clk
0:04:48.3]} 10. Bb3 {[%clk 0:04:42.9]} 10... Bb7 {[%clk 0:04:47.9]} 11. O-O
{[%clk 0:04:41]} 11... Nbd7 {[%clk 0:04:46.4]} 12. Qe2 {[%clk 0:04:40.3]} 12...
e5 {[%clk 0:04:43.7]} 13. dxe5 {[%clk 0:04:36.8]} 13... Nxe5 {[%clk 0:04:43.6]}
14. Rad1 {[%clk 0:04:33.6]} 14... Nxf3+ {[%clk 0:04:41.6]} 15. gxf3 {[%clk
0:04:26.3]} 15... Qe5 {[%clk 0:04:40.3]} 16. f4 {[%clk 0:04:23.4]} 16... Qf5
{[%clk 0:04:32.5]} 17. f3 {[%clk 0:04:18.6]} 17... Rae8 {[%clk 0:04:27.6]} 18.
Qf2 {[%clk 0:04:15.8]} 18... c5 {[%clk 0:04:22.6]} 19. Bc2 {[%clk 0:04:06]}
19... Qh5 {[%clk 0:04:17.1]} 20. e4 {[%clk 0:04:01.4]} 20... g6 {[%clk
0:03:52.4]} 21. a3 {[%clk 0:03:43.9]} 21... Rd8 {[%clk 0:03:36.4]} 22. e5 {[%clk
0:03:40.7]} 22... Nd5 {[%clk 0:03:29.3]} 23. Nxd5 {[%clk 0:03:35]} 23... Bxd5
{[%clk 0:03:29.2]} 24. Qg3 {[%clk 0:03:13.1]} 24... Rfe8 {[%clk 0:03:14.5]} 25.
f5 {[%clk 0:02:43.1]} 25... Bc4 {[%clk 0:03:05.6]} 26. Rfe1 {[%clk 0:02:26.1]}
26... Qh6 {[%clk 0:02:56.7]} 27. f4 {[%clk 0:01:58.5]} 27... Qh5 {[%clk
0:02:48.8]} 28. Rxd8 {[%clk 0:01:54.2]} 28... Rxd8 {[%clk 0:02:47.1]} 29. b3
{[%clk 0:01:47]} 29... Bd5 {[%clk 0:02:38.8]} 30. e6 {[%clk 0:01:31.3]} 30...
fxe6 {[%clk 0:02:34.7]} 31. fxe6 {[%clk 0:01:21]} 31... Bc6 {[%clk 0:02:31.1]}
32. e7 {[%clk 0:01:14.7]} 32... Re8 {[%clk 0:02:29.2]} 33. Bd1 {[%clk
0:01:07.3]} 33... Qd5 {[%clk 0:02:26.6]} 34. Bg4 {[%clk 0:00:52]} 34... Qd4+
{[%clk 0:02:22.5]} 35. Qe3 {[%clk 0:00:42.1]} 35... Rxe7 {[%clk 0:02:12.2]} 36.
Qxd4 {[%clk 0:00:19.5]} 36... Rxe1+ {[%clk 0:02:11.8]} 37. Kf2 {[%clk
0:00:18.9]} 37... cxd4 {[%clk 0:02:11.5]} 38. Kxe1 {[%clk 0:00:18.1]} 38... Bd5
{[%clk 0:02:10.7]} 39. Kd2 {[%clk 0:00:17.3]} 39... Bxb3 {[%clk 0:02:09.5]} 40.
Kd3 {[%clk 0:00:16.7]} 40... Kf7 {[%clk 0:02:07.5]} 41. Kxd4 {[%clk 0:00:16.1]}
41... Kf6 {[%clk 0:02:07]} 42. Kc5 {[%clk 0:00:14.7]} 42... Bc4 {[%clk
0:02:05.3]} 43. Kb6 {[%clk 0:00:13.3]} 43... h5 {[%clk 0:02:02.6]} 44. Bh3
{[%clk 0:00:11.6]} 44... Ke7 {[%clk 0:01:57.4]} 45. Bc8 {[%clk 0:00:09.8]} 45...
Kd6 {[%clk 0:01:49.7]} 46. Bxa6 {[%clk 0:00:08.7]} 46... Kd5 {[%clk 0:01:45.4]}
47. Bxb5 {[%clk 0:00:07.7]} 47... Bb3 {[%clk 0:01:45]} 48. Bc6+ {[%clk
0:00:06.1]} 48... Kd4 {[%clk 0:01:43]} 49. a4 {[%clk 0:00:05.6]} 49... Ke3
{[%clk 0:01:40.3]} 50. a5 {[%clk 0:00:05]} 50... Bc4 {[%clk 0:01:39.6]} 51. a6
{[%clk 0:00:04.6]} 51... Bxa6 {[%clk 0:01:38.2]} 52. Kxa6 {[%clk 0:00:04.3]}
52... Kxf4 {[%clk 0:01:37.7]} 53. Kb7 {[%clk 0:00:03.9]} 53... Kg4 {[%clk
0:01:36.7]} 54. Bg2 {[%clk 0:00:02.9]} 54... h4 {[%clk 0:01:35.2]} 55. Be4
{[%clk 0:00:02.1]} 55... h3 {[%clk 0:01:35.1]} 56. Bxg6 {[%clk 0:00:01.1]} 56...
Kf3 {[%clk 0:01:34]} 57. Bf5 {[%clk 0:00:00.4]} 57... Kg2 {[%clk 0:01:33.4]} 0-1

[Event "Live Chess"]
[Site "Chess.com"]
[Date "2024.06.02"]
[Round "-"]
[White "E2E4colchester"]
[Black "TheSmoulderingMaster"]
[Result "0-1"]
[WhiteElo "1006"]
[BlackElo "1785"]
[TimeControl "300"]
[EndTime "8:43:57 PDT"]
[Termination "TheSmoulderingMaster won by resignation"]

1. d4 {[%clk 0:04:56.4]} 1... Nf6 {[%clk 0:04:58.6]} 2. c4 {[%clk 0:04:54.2]}
2... d6 {[%clk 0:04:57.7]} 3. Nc3 {[%clk 0:04:52.2]} 3... g6 {[%clk 0:04:57]} 4.
e4 {[%clk 0:04:50.4]} 4... Bg7 {[%clk 0:04:56.2]} 5. Nf3 {[%clk 0:04:47.1]} 5...
O-O {[%clk 0:04:55.3]} 6. Be3 {[%clk 0:04:45]} 6... c6 {[%clk 0:04:53.4]} 7. Bd3
{[%clk 0:04:44]} 7... Qa5 {[%clk 0:04:52.2]} 8. Qd2 {[%clk 0:04:41.6]} 8... Nbd7
{[%clk 0:04:43]} 9. O-O {[%clk 0:04:36]} 9... Re8 {[%clk 0:04:41.7]} 10. Rfe1
{[%clk 0:04:29.7]} 10... e5 {[%clk 0:04:39.7]} 11. d5 {[%clk 0:04:27.1]} 11...
Qd8 {[%clk 0:04:33.3]} 12. dxc6 {[%clk 0:04:17.2]} 12... bxc6 {[%clk 0:04:31.1]}
13. b3 {[%clk 0:04:15.5]} 13... c5 {[%clk 0:04:28.4]} 14. Nb5 {[%clk 0:04:11.9]}
14... Nb8 {[%clk 0:04:26.4]} 15. Bc2 {[%clk 0:04:03.5]} 15... Bf8 {[%clk
0:04:12.8]} 16. Red1 {[%clk 0:03:59.5]} 16... Bb7 {[%clk 0:04:05.9]} 17. Qd3
{[%clk 0:03:48.8]} 17... Nc6 {[%clk 0:04:00.6]} 18. Nxd6 {[%clk 0:03:40.8]}
18... Nb4 {[%clk 0:03:56.9]} 19. Nxb7 {[%clk 0:03:31.3]} 19... Qc7 {[%clk
0:03:50.3]} 20. Qc3 {[%clk 0:03:03.2]} 20... Qxb7 {[%clk 0:03:45]} 21. a4 {[%clk
0:03:00]} 21... Nxe4 {[%clk 0:03:42.6]} 22. Qd3 {[%clk 0:02:51.4]} 22... Nxd3
{[%clk 0:03:39.7]} 0-1

[Event "Live Chess"]
[Site "Chess.com"]
[Date "2024.06.02"]
[Round "-"]
[White "gmnorfolk"]
[Black "Rusty_Bridges"]
[Result "1-0"]
[WhiteElo "2129"]
[BlackElo "1482"]
[TimeControl "300"]
[EndTime "8:44:04 PDT"]
[Termination "gmnorfolk won by resignation"]

1. d4 {[%clk 0:04:57.3]} 1... d5 {[%clk 0:04:58.2]} 2. Nf3 {[%clk 0:04:53.9]}
2... Nc6 {[%clk 0:04:54.9]} 3. Bf4 {[%clk 0:04:50.9]} 3... Nf6 {[%clk 0:04:49]}
4. e3 {[%clk 0:04:49]} 4... Bg4 {[%clk 0:04:45.4]} 5. Be2 {[%clk 0:04:47.2]}
5... e6 {[%clk 0:04:43]} 6. Nbd2 {[%clk 0:04:42.8]} 6... Bd6 {[%clk 0:04:41.5]}
7. Bg3 {[%clk 0:04:39.9]} 7... Bxg3 {[%clk 0:04:39.7]} 8. hxg3 {[%clk
0:04:37.9]} 8... Qd7 {[%clk 0:04:37.9]} 9. c3 {[%clk 0:04:35.2]} 9... O-O-O
{[%clk 0:04:36.2]} 10. Qa4 {[%clk 0:04:32]} 10... Kb8 {[%clk 0:04:34.2]} 11. Bb5
{[%clk 0:04:29.4]} 11... a6 {[%clk 0:04:28.7]} 12. Bxc6 {[%clk 0:04:27.7]} 12...
Qxc6 {[%clk 0:04:27.8]} 13. Qxc6 {[%clk 0:04:26.8]} 13... bxc6 {[%clk
0:04:27.7]} 14. Ne5 {[%clk 0:04:25.9]} 14... Rd7 {[%clk 0:04:12]} 15. Nxd7+
{[%clk 0:04:23.4]} 15... Nxd7 {[%clk 0:04:11.2]} 16. f3 {[%clk 0:04:22.1]} 16...
Bf5 {[%clk 0:04:09.2]} 17. e4 {[%clk 0:04:19.3]} 17... dxe4 {[%clk 0:04:08]} 18.
fxe4 {[%clk 0:04:17.8]} 18... Bg4 {[%clk 0:04:06.6]} 19. Nf3 {[%clk 0:04:15.8]}
19... h5 {[%clk 0:04:04.2]} 20. Nh2 {[%clk 0:04:12.8]} 20... f5 {[%clk
0:04:00.5]} 21. Nxg4 {[%clk 0:04:10.6]} 21... fxg4 {[%clk 0:03:59.7]} 22. O-O
{[%clk 0:04:08.8]} 22... Nf6 {[%clk 0:03:56.8]} 23. Rae1 {[%clk 0:04:07.3]}
23... Rd8 {[%clk 0:03:49.6]} 24. e5 {[%clk 0:04:06.7]} 24... Nd5 {[%clk
0:03:48.1]} 25. Rf7 {[%clk 0:04:06.1]} 25... Rg8 {[%clk 0:03:39.9]} 26. Ref1
{[%clk 0:04:03.9]} 26... Kb7 {[%clk 0:03:37.4]} 27. Rf8 {[%clk 0:04:03.2]} 27...
Rxf8 {[%clk 0:03:34.4]} 28. Rxf8 {[%clk 0:04:03.1]} 1-0